fUST/lending_fUST_20250423
["ID","MTS","AMOUNT","RATE_DAILY","PERIOD"]
[358664128,1745350240115,-160.0,0.00022743,2]
[358664129,1745350240125,-160.0,0.00022743,2]
[358664130,1745350240134,-160.0,0.00022743,2]
[358664131,1745350240144,-729.16666667,0.00022743,2]
[358664132,1745350240154,-420.73667954,0.00022743,2]
[358664133,1745350240164,-501.55918414,0.00022756,2]
[358664134,1745350240174,-500.0,0.0002276,2]
[358664136,1745350240221,-500.0,0.00022779,2]
[358664138,1745350240232,-639.18897739,0.00022779,2]
[358664140,1745350240242,-536.93726865,0.00022795,2]
[358664141,1745350240252,-500.0,0.00022795,2]
[358664142,1745350240262,-500.0,0.00022795,2]
[358664143,1745350240271,-500.0,0.00022795,2]
[358664144,1745350240282,-157.72120533,0.00022795,2]
[358664145,1745350240292,-500.0,0.00022795,2]
[358664146,1745350240304,-151.0,0.000228,9]
[358664147,1745350240315,-17890.70337553,0.0002299,2]
[358664148,1745350240326,-1000.0,0.00023,2]
[358664149,1745350240337,-151.0,0.00023,10]
[358664150,1745350240346,-500.0,0.00023013,2]
[358664151,1745350240355,-1211.88,0.00023013,2]
[358664152,1745350240365,-500.0,0.00023013,2]
[358664153,1745350240375,-2740.43,0.00023013,2]
[358664154,1745350240386,-459.51,0.00023013,2]
[358664155,1745350240396,-500.0,0.00023013,2]
[358664156,1745350240406,-500.0,0.00023013,2]
[358664157,1745350240415,-500.0,0.00023013,2]
[358664158,1745350240425,-500.0,0.00023013,2]
[358664159,1745350240434,-151.0,0.000231,9]
[358664160,1745350240444,-154.97201393,0.00023238,2]
[358664161,1745350240454,-500.0,0.00023287,2]
[358664162,1745350240464,-1211.88,0.00023287,2]
[358664163,1745350240473,-500.0,0.00023287,2]
[358664164,1745350240483,-2740.43,0.00023287,2]
[358664165,1745350240492,-500.0,0.00023287,2]
[358664166,1745350240502,-281.58,0.00023287,2]
[358664167,1745350240512,-500.0,0.00023287,2]
[358664168,1745350240522,-500.0,0.00023287,2]
[358664169,1745350240531,-151.0,0.000233,5]
[358664170,1745350240542,-6593.06,0.00023436,3]
[358664171,1745350240553,-3296.54,0.00023436,3]
[358664172,1745350240563,-1648.26,0.00023436,3]
[358664173,1745350240572,-824.14,0.00023436,3]
[358664174,1745350240582,-412.06,0.00023436,3]
[358664175,1745350240592,-12570.97479393,0.00023436,3]
[358664176,1745350240602,-420.73667954,0.00023441,3]
[358664177,1745350240612,-160.0,0.00023441,3]
[358664178,1745350240621,-160.0,0.00023441,3]
[358664179,1745350240631,-729.16666667,0.00023441,3]
[358664180,1745350240641,-160.0,0.00023444,3]
[358664181,1745350240651,-151.0,0.000235,8]
[358664182,1745350240661,-500.0,0.00023561,2]
[358664183,1745350240670,-1211.88,0.00023561,2]
[358664184,1745350240680,-500.0,0.00023561,2]
[358664185,1745350240690,-2740.43,0.00023561,2]
[358664186,1745350240699,-500.0,0.00023561,2]
[358664187,1745350240709,-542.62,0.00023561,2]
[358664188,1745350240718,-411.32,0.00023561,2]
[358664189,1745350240727,-500.0,0.00023642,2]
[358664190,1745350240739,-151.0,0.000237,8]
[358664191,1745350240749,-2661.0,0.00023817,2]
[358664192,1745350240759,-2661.0,0.00023817,2]
[358664193,1745350240769,-2660.9,0.00023817,2]
[358664194,1745350240779,-420.0,0.00023817,2]
[358664195,1745350240789,-420.0,0.00023817,2]
[358664196,1745350240801,-500.0,0.00023835,2]
[358664197,1745350240811,-1211.88,0.00023835,2]
[358664198,1745350240821,-500.0,0.00023835,2]
[358664199,1745350240830,-2740.43,0.00023835,2]
[358664200,1745350240841,-500.0,0.00023835,2]
[358664201,1745350240851,-500.0,0.00023838,2]
[358664202,1745350240860,-500.0,0.00023838,2]
[358664203,1745350240870,-500.0,0.000239,2]
[358664204,1745350240880,-501.72900835,0.000239,2]
[358664205,1745350240890,-500.24069776,0.000239,2]
[358664206,1745350240899,-422.85209581,0.000239,2]
[358664207,1745350240909,-161.55197222,0.000239,2]
[358664208,1745350240919,-539.02075636,0.000239,2]
[358664209,1745350240929,-500.0,0.000239,2]
[358664210,1745350240939,-500.0,0.000239,2]
[358664211,1745350240949,-227.94241653,0.000239,2]
[358664212,1745350240959,-500.0,0.000239,2]
[358664213,1745350240969,-500.0,0.000239,2]
[358664214,1745350240979,-500.0,0.000239,2]
[358664215,1745350240989,-500.0,0.000239,2]
[358664216,1745350240999,-503.03765206,0.000239,2]
[358664217,1745350241008,-500.0,0.000239,2]
[358664218,1745350241019,-500.0,0.000239,2]
[358664219,1745350241029,-500.0,0.000239,2]
[358664220,1745350241039,-500.0,0.000239,2]
[358664221,1745350241051,-1000.0,0.00024,2]
[358664222,1745350241061,-1000.0,0.00024,2]
[358664223,1745350241070,-500.0,0.00024031,2]
[358664224,1745350241080,-300.0,0.00024031,2]
[358664225,1745350241089,-500.0,0.00024031,2]
[358664226,1745350241098,-500.0,0.00024031,2]
[358664227,1745350241107,-500.0,0.00024031,2]
[358664228,1745350241116,-500.0,0.00024031,2]
[358664229,1745350241125,-500.0,0.00024109,2]
[358664230,1745350241135,-1211.88,0.00024109,2]
[358664231,1745350241145,-500.0,0.00024109,2]
[358664232,1745350241155,-2740.43,0.00024109,2]
[358664233,1745350241163,-493.98,0.00024109,2]
[358664234,1745350241173,-1355.77254434,0.00024243,2]
[358664235,1745350241183,-500.0,0.00024383,2]
[358664236,1745350241192,-1211.88,0.00024383,2]
[358664237,1745350241202,-500.0,0.00024383,2]
[358664238,1745350241212,-2740.43,0.00024383,2]
[358664239,1745350241222,-2660.8,0.00024657,2]
[358664240,1745350241233,-2660.8,0.00024657,2]
[358664241,1745350241244,-2660.8,0.00024657,2]
[358664242,1745350241254,-2660.8,0.00024657,2]
[358664243,1745350241265,-2660.8,0.00024657,2]
[358664244,1745350241276,-2660.8,0.00024657,2]
[358664245,1745350241286,-2660.8,0.00024657,2]
[358664246,1745350241297,-2660.8,0.00024657,2]
[358664247,1745350241312,-2660.8,0.00024657,2]
[358664248,1745350241323,-2660.8,0.00024657,2]
[358664249,1745350241336,-2660.8,0.00024657,2]
[358664250,1745350241347,-2660.8,0.00024657,2]
[358664251,1745350241358,-2660.8,0.00024657,2]
[358664252,1745350241368,-2660.8,0.00024657,2]
[358664253,1745350241378,-2660.8,0.00024657,2]
[358664254,1745350241388,-500.0,0.00024657,2]
[358664255,1745350241398,-1211.88,0.00024657,2]
[358664256,1745350241408,-500.0,0.00024657,2]
[358664257,1745350241418,-2740.43,0.00024657,2]
[358664258,1745350241428,-151.0,0.000248,7]
[358664259,1745350241438,-151.254667,0.000248,7]
[358664260,1745350241448,-151.0,0.000248,2]
[358664261,1745350241458,-151.0,0.000248,7]
[358664262,1745350241468,-151.0,0.000248,7]
[358664263,1745350241478,-151.0,0.000248,7]
[358664264,1745350241489,-151.0,0.000248,7]
[358664265,1745350241500,-41433.237349,0.000248,2]
[358664266,1745350241510,-151.244324,0.000248,7]
[358664267,1745350241520,-151.0,0.000248,7]
[358664268,1745350241530,-151.0,0.000248,7]
[358664269,1745350241540,-151.0,0.000249,7]
[358664270,1745350241553,-151.0,0.000249,7]
[358664271,1745350241564,-151.0,0.000249,7]
[358664272,1745350241574,-151.0,0.000249,7]
[358664273,1745350241583,-151.0,0.000249,7]
[358664274,1745350241594,-151.0,0.000249,7]
[358664275,1745350241603,-151.0,0.000249,7]
[358664276,1745350241614,-151.0,0.000249,7]
[358664277,1745350241623,-151.0,0.000249,7]
[358664278,1745350241633,-151.0,0.000249,7]
[358664279,1745350241642,-168.880015,0.000249,7]
[358664280,1745350241652,-214.659379,0.000249,7]
[358664281,1745350241662,-151.0,0.000249,7]
[358664282,1745350241671,-214.659379,0.000249,7]
[358664283,1745350241681,-151.0,0.000249,2]
[358664284,1745350241691,-265.987961,0.000249,7]
[358664285,1745350241700,-265.987961,0.000249,7]
[358664286,1745350241710,-151.0,0.000249,2]
[358664287,1745350241720,-187.038094,0.000249,2]
[358664288,1745350241730,-151.0,0.000249,7]
[358664289,1745350241740,-164.719557,0.000249,7]
[358664290,1745350241749,-151.0,0.000249,7]
[358664291,1745350241759,-293604.24273563,0.000249,2]
[358664292,1745350241774,-1066.41360737,0.000249,2]
[358664293,1745350241784,-151.0,0.000249,7]
[358664294,1745350241794,-151.0,0.000249,7]
[358664295,1745350241807,-500.0,0.00024931,2]
[358664296,1745350241817,-1211.88,0.00024931,2]
[358664297,1745350241827,-500.0,0.00024931,2]
[358664298,1745350241836,-1204.24757707,0.00024931,2]
[358664299,1745350241848,-1536.18242293,0.00024931,2]
[358664300,1745350241858,-1000.0,0.00025,2]
[358664301,1745350241868,-1000.0,0.00025,2]
[358664302,1745350241880,-1387.95757702,0.00025,2]
[358664303,1745350241892,-500.0,0.00025,2]
[358664304,1745350241908,-112.04242298,0.00025,2]
[358664305,1745350241918,-500.0,0.00025205,2]
[358664306,1745350241928,-1211.88,0.00025205,2]
[358664307,1745350241937,-500.0,0.00025205,2]
[358664308,1745350241947,-2740.43,0.00025205,2]
[358664309,1745350241956,-500.0,0.00025479,2]
[358664310,1745350241967,-1211.88,0.00025479,2]
[358664311,1745350241977,-500.0,0.00025479,2]
[358664312,1745350241986,-2740.43,0.00025479,2]
[358664313,1745350241995,-1893.23121336,0.000255,2]
[358664314,1745350242046,-210.266833,0.000249,7]
[358664315,1745350242059,-106.76878664,0.000255,2]
[358664316,1745350242069,-24.93738036,0.00025583,2]
[358664317,1745350242081,-475.06261964,0.00025583,2]
[358664318,1745350242092,-224.93738036,0.00025583,2]
[358664324,1745350243581,-1141.85,0.00021917,2]
[358664325,1745350243592,-275.06261964,0.00025583,2]
[358664326,1745350243604,-500.0,0.00025583,2]
[358664327,1745350243614,-600.0,0.00025675,2]
[358664328,1745350243625,-2219.0,0.00025681,2]
[358664329,1745350243635,-403.0,0.00025681,2]
[358664330,1745350243645,-335.06,0.00025753,2]
[358664331,1745350243655,-1211.88,0.00025753,2]
[358664332,1745350243665,-500.0,0.00025753,2]
[358664333,1745350243675,-587.0,0.00025884,2]
[358664334,1745350243685,-641.37391179,0.00026,2]
[358664335,1745350243698,-358.62608821,0.00026,2]
[358664337,1745350243709,-1211.88,0.00026027,2]
[358664339,1745350243720,-500.0,0.00026027,2]
[358664340,1745350243730,-281.923,0.0002626,12]
[358664341,1745350243741,-1211.88,0.00026301,2]
[358664342,1745350243750,-289.36,0.00026301,2]
[358664343,1745350243760,-2000.0,0.000265,2]
[358664344,1745350243771,-1211.88,0.00026575,2]
[358664346,1745350243781,-184.32432727,0.0002661,2]
[358664347,1745350243793,-1355.77254434,0.00026669,2]
[358664348,1745350243808,-1211.88,0.00026849,2]
[358664349,1745350243819,-312.898062,0.00027,3]
[358664350,1745350243829,-312.898062,0.00027,3]
[358664351,1745350243839,-1669.92595339,0.00027,30]
[358664352,1745350243849,-1211.88,0.00027123,2]
[358664353,1745350243859,-900.0,0.00027319,2]
[358664354,1745350243871,-500.0,0.00027397,2]
[358664355,1745350243883,-520.12054846,0.00027397,2]
[358664356,1745350243892,-1211.88,0.00027397,2]
[358664357,1745350243902,-500.0,0.00027397,5]
[358664358,1745350243913,-2000.0,0.000275,2]
[358664359,1745350243923,-153.0,0.00027504,2]
[358664360,1745350243934,-153.0,0.00027504,2]
[358664361,1745350243946,-153.0,0.00027504,2]
[358664362,1745350243957,-153.0,0.00027504,2]
[358664363,1745350243967,-153.0,0.00027504,2]
[358664364,1745350243977,-153.0,0.00027507,2]
[358664365,1745350243987,-153.0,0.00027507,2]
[358664366,1745350243996,-153.0,0.00027507,2]
[358664367,1745350244006,-153.0,0.00027507,2]
[358664368,1745350244016,-153.0,0.00027507,2]
[358664369,1745350244026,-153.0,0.00027507,2]
[358664370,1745350244036,-153.0,0.00027507,2]
[358664371,1745350244045,-153.0,0.00027507,2]
[358664372,1745350244056,-153.0,0.00027507,2]
[358664373,1745350244066,-153.0,0.00027515,2]
[358664374,1745350244076,-153.0,0.00027515,2]
[358664375,1745350244086,-153.0,0.00027515,2]
[358664376,1745350244096,-153.0,0.00027515,2]
[358664377,1745350244106,-153.0,0.00027515,2]
[358664378,1745350244116,-153.0,0.00027518,2]
[358664379,1745350244127,-153.0,0.00027518,2]
[358664380,1745350244139,-153.0,0.00027518,2]
[358664381,1745350244149,-153.0,0.00027518,2]
[358664382,1745350244160,-153.0,0.00027518,2]
[358664383,1745350244171,-153.0,0.00027518,2]
[358664384,1745350244181,-508.78844509,0.00027552,5]
[358664385,1745350244191,-1211.88,0.00027671,2]
[358664386,1745350244201,-1211.88,0.00027945,2]
[358664387,1745350244211,-1000.0,0.00028,2]
[358664388,1745350244220,-1000.0,0.00028,2]
[358664389,1745350244229,-1000.0,0.00028117,5]
[358664390,1745350244239,-823.0,0.0002813,2]
[358664391,1745350244248,-1212.06574707,0.00028219,2]
[358664392,1745350244258,-443.15491915,0.00028239,5]
[358664393,1745350244268,-1000.0,0.00028259,5]
[358664394,1745350244278,-500.0,0.00028274,5]
[358664395,1745350244288,-502.67115217,0.00028274,5]
[358664396,1745350244298,-500.0,0.00028274,5]
[358664397,1745350244309,-1000.0,0.00028274,5]
[358664398,1745350244320,-1450.66643775,0.00028438,2]
[358664399,1745350244330,-2000.0,0.000285,2]
[358664400,1745350244340,-403.0,0.00028681,2]
[358664401,1745350244351,-646.5,0.00028703,15]
[358664402,1745350244361,-1200.0,0.00028963,5]
[358664403,1745350244372,-1000.0,0.00029,2]
[358664404,1745350244382,-1355.77254434,0.00029095,2]
[358664405,1745350244392,-1000.0,0.00029122,4]
[358664406,1745350244402,-250.0,0.00029163,2]
[358664407,1745350244412,-1000.0,0.00029318,2]
[358664408,1745350244422,-1000.0,0.00029379,5]
[358664409,1745350244432,-1000.0,0.00029379,5]
[358664410,1745350244442,-1000.0,0.00029379,5]
[358664411,1745350244453,-1000.0,0.00029379,5]
[358664412,1745350244464,-268.33081743,0.00029379,5]
[358664413,1745350244475,-1000.0,0.00029379,5]
[358664414,1745350244486,-365.62437432,0.00029379,5]
[358664415,1745350244497,-1000.0,0.00029379,5]
[358664416,1745350244508,-2000.0,0.000295,2]
[358664417,1745350244518,-1000.0,0.00029511,5]
[358664418,1745350244529,-1000.0,0.00029511,5]
[358664419,1745350244539,-1000.0,0.00029511,2]
[358664420,1745350244550,-1000.0,0.00029511,5]
[358664421,1745350244561,-23093.99659596,0.00029699,2]
[358664422,1745350244572,-211.0,0.0003,2]
[358664423,1745350244583,-1073.08,0.0003,2]
[358664424,1745350244593,-268.0,0.0003,2]
[358664425,1745350244604,-2000.0,0.0003,4]
[358664426,1745350244614,-1152.0,0.0003057,2]
[358664427,1745350244624,-1500.0,0.00030607,5]
[358664428,1745350244634,-500.0,0.00030827,5]
[358664429,1745350244645,-500.0,0.00030891,7]
[358664430,1745350244656,-500.0,0.00030891,5]
[358664431,1745350244666,-2000.0,0.00031,4]
[358664432,1745350244676,-500.0,0.00031043,7]
[358664433,1745350244687,-1000.0,0.00031063,5]
[358664434,1745350244697,-155.31108548,0.00031117,5]
[358664438,1745350246352,-500.0,0.00021917,2]
[358664439,1745350246363,-500.0,0.00021917,2]
[358664440,1745350246375,-1141.85,0.00022191,2]
[358664441,1745350246386,-1141.85,0.00022465,2]
[358664442,1745350246396,-1141.85,0.00022739,2]
[358664443,1745350246407,-1141.85,0.00023013,2]
[358664444,1745350246417,-1141.85,0.00023287,2]
[358664445,1745350246427,-1141.85,0.00023561,2]
[358664446,1745350246438,-1141.85,0.00023835,2]
[358664447,1745350246448,-1141.85,0.00024109,2]
[358664448,1745350246458,-1141.85,0.00024383,2]
[358664449,1745350246469,-1141.85,0.00024657,2]
[358664450,1745350246479,-409.08735796,0.00031117,5]
[358664451,1745350246490,-156.713468,0.00031195,3]
[358664452,1745350246500,-539.94163406,0.00031324,5]
[358664453,1745350246510,-500.0,0.00031324,5]
[358664454,1745350246521,-1572.881109,0.0003148,6]
[358664455,1745350246531,-3000.0,0.000315,2]
[358664456,1745350246542,-1000.0,0.000315,6]
[358664457,1745350246553,-1000.0,0.0003152,6]
[358664458,1745350246564,-1355.77254434,0.00031522,2]
[358664459,1745350246575,-1000.0,0.0003154,6]
[358664460,1745350246585,-1000.0,0.0003156,6]
[358664461,1745350246595,-1868.678786,0.0003158,6]
[358664462,1745350246605,-1000.0,0.0003158,6]
[358664463,1745350246616,-1000.0,0.000316,6]
[358664464,1745350246626,-1000.0,0.000316,6]
[358664465,1745350246637,-1000.0,0.0003162,6]
[358664466,1745350246648,-1000.0,0.0003162,6]
[358664467,1745350246658,-1000.0,0.0003164,6]
[358664468,1745350246669,-1000.0,0.0003164,6]
[358664469,1745350246680,-1000.0,0.0003166,6]
[358664470,1745350246691,-1000.0,0.0003166,6]
[358664471,1745350246703,-1000.0,0.0003168,6]
[358664472,1745350246715,-1000.0,0.0003168,6]
[358664473,1745350246840,-1095.480184,0.0003168,6]
[358664474,1745350246861,-167.17714225,0.00031681,2]
[358664623,1745351438496,-300.0,0.00021814,2]
[358664624,1745351438506,-300.0,0.00021814,2]
[358664625,1745351438517,-20779.12815694,0.00021815,2]
[358664627,1745351438526,-302.23319391,0.00021816,2]
[358664629,1745351438537,-160.0,0.00021849,2]
[358664631,1745351438548,-500.0,0.00021917,2]
[358664632,1745351438559,-500.0,0.00021917,2]
[358664633,1745351438569,-500.0,0.00021917,2]
[358664635,1745351438578,-500.0,0.00021917,2]
[358664636,1745351438588,-632.66703073,0.00021917,2]
[358664638,1745351438598,-500.0,0.00021917,2]
[358664640,1745351438609,-637.57,0.00021917,2]
[358664642,1745351438618,-541.69,0.00021917,2]
[358664644,1745351438628,-583.74,0.00021917,2]
[358664646,1745351438638,-500.0,0.00021917,2]
[358664648,1745351438649,-336.64,0.00021917,2]
[358664650,1745351438659,-500.0,0.00021917,2]
[358664652,1745351438669,-500.0,0.00021917,2]
[358664654,1745351438681,-1760.35,0.00021917,2]
[358664657,1745351438691,-500.0,0.00021917,2]
[358664659,1745351438700,-500.0,0.00021917,2]
[358664661,1745351438710,-500.0,0.00021917,2]
[358664663,1745351438720,-514.37271961,0.00021917,2]
[358664665,1745351438729,-500.0,0.00021917,2]
[358664667,1745351438739,-500.0,0.00021917,2]
[358664669,1745351438749,-500.0,0.00021917,2]
[358664671,1745351438759,-500.0,0.00021917,2]
[358664673,1745351438768,-500.0,0.00021917,2]
[358664675,1745351438778,-500.0,0.00021917,2]
[358664677,1745351438788,-500.0,0.00021917,2]
[358664679,1745351438798,-500.0,0.00021917,2]
[358664681,1745351438808,-500.0,0.00021917,2]
[358664684,1745351438818,-500.0,0.00021917,2]
[358664686,1745351438841,-500.0,0.00021917,2]
[358664689,1745351438853,-500.0,0.00021917,2]
[358664691,1745351438864,-500.0,0.00021917,2]
[358664693,1745351438875,-500.0,0.00021917,2]
[358664695,1745351438886,-704.72,0.00021917,2]
[358664698,1745351438897,-500.0,0.00021917,2]
[358664700,1745351438909,-500.0,0.00021917,2]
[358664702,1745351438920,-500.0,0.00021917,2]
[358664704,1745351438930,-500.0,0.00021917,2]
[358664706,1745351438941,-277.99723843,0.00021917,2]
[358664708,1745351438951,-500.0,0.00021917,2]
[358664710,1745351438962,-500.0,0.00021917,2]
[358664712,1745351438974,-500.0,0.00021917,2]
[358664715,1745351438984,-500.0,0.00021917,2]
[358664717,1745351438995,-500.0,0.00021917,2]
[358664719,1745351439005,-500.0,0.00021917,2]
[358664721,1745351439017,-500.0,0.00021917,2]
[358664723,1745351439027,-500.0,0.00021917,2]
[358664726,1745351439040,-500.0,0.00021917,2]
[358664728,1745351439050,-500.0,0.00021917,2]
[358664730,1745351439061,-500.0,0.00021917,2]
[358664732,1745351439071,-243.3875988,0.00021917,2]
[358664734,1745351439082,-645.74,0.00021917,2]
[358664736,1745351439094,-500.0,0.00021917,2]
[358664738,1745351439104,-501.69938003,0.00021917,2]
[358664740,1745351439115,-500.0,0.00021917,2]
[358664743,1745351439125,-500.0,0.00021917,2]
[358664745,1745351439136,-500.0,0.00021917,2]
[358664747,1745351439146,-500.0,0.00021917,2]
[358664749,1745351439158,-500.0,0.00021917,2]
[358664751,1745351439169,-500.0,0.00021917,2]
[358664753,1745351439179,-500.0,0.00021917,2]
[358664755,1745351439191,-500.0,0.00021917,2]
[358664757,1745351439206,-156.41585294,0.00021917,2]
[358664759,1745351439217,-500.0,0.00021917,2]
[358664761,1745351439228,-500.0,0.00021917,2]
[358664764,1745351439239,-500.0,0.00021917,2]
[358664766,1745351439251,-500.0,0.00021917,2]
[358664783,1745351439411,-500.0,0.00021917,2]
[358664786,1745351439421,-500.0,0.00021917,2]
[358664788,1745351439431,-500.0,0.00021917,2]
[358664790,1745351439441,-500.0,0.00021917,2]
[358664792,1745351439451,-191.1484651,0.00021918,2]
[358664794,1745351439461,-151.0,0.00022142,2]
[358664796,1745351439471,-414.8,0.00022142,2]
[358664798,1745351439480,-260.21962085,0.0002219,2]
[358664800,1745351439490,-500.0,0.00022191,2]
[358664802,1745351439500,-500.0,0.00022191,2]
[358664804,1745351439510,-500.0,0.00022191,2]
[358664806,1745351439519,-393.33,0.00022191,2]
[358664808,1745351439530,-1760.35,0.00022191,2]
[358664810,1745351439540,-617.69,0.00022191,2]
[358664812,1745351439550,-500.0,0.00022191,2]
[358664814,1745351439559,-500.0,0.00022191,2]
[358664816,1745351439569,-500.0,0.00022191,2]
[358664818,1745351439579,-547.84290462,0.00022191,2]
[358664820,1745351439588,-500.0,0.00022191,2]
[358664822,1745351439598,-500.0,0.00022191,2]
[358664824,1745351439607,-704.72,0.00022191,2]
[358664826,1745351439616,-500.0,0.00022191,2]
[358664828,1745351439626,-500.0,0.00022191,2]
[358664830,1745351439635,-500.0,0.00022191,2]
[358664832,1745351439645,-253.67071364,0.00022191,2]
[358664834,1745351439655,-500.0,0.00022191,2]
[358664836,1745351439664,-500.0,0.00022191,2]
[358664838,1745351439674,-500.0,0.00022191,2]
[358664840,1745351439685,-500.0,0.00022191,2]
[358664842,1745351439695,-500.0,0.00022191,2]
[358664844,1745351439704,-410.8913718,0.00022191,2]
[358664846,1745351439715,-500.0,0.00022191,2]
[358664848,1745351439724,-500.0,0.00022191,2]
[358664850,1745351439734,-500.0,0.00022191,2]
[358664852,1745351439744,-500.0,0.00022191,2]
[358664854,1745351439754,-500.0,0.00022191,2]
[358664856,1745351439764,-152.0,0.00022355,2]
[358664858,1745351439774,-500.0,0.00022399,2]
[358664860,1745351439784,-339.61044108,0.00022399,2]
[358664862,1745351439793,-287.67397708,0.00022399,2]
[358664864,1745351439804,-500.0,0.00022399,2]
[358664866,1745351439814,-447.21144584,0.00022399,2]
[358664868,1745351439823,-500.0,0.00022399,2]
[358664870,1745351439834,-500.0,0.00022399,2]
[358664872,1745351439844,-500.0,0.00022399,2]
[358664875,1745351439853,-500.0,0.00022399,2]
[358664877,1745351439863,-500.0,0.00022399,2]
[358664879,1745351439873,-500.0,0.00022399,2]
[358664881,1745351439882,-500.0,0.00022399,2]
[358664883,1745351439892,-182.50316974,0.00022465,2]
[358664885,1745351439902,-500.0,0.00022465,2]
[358664887,1745351439912,-1760.35,0.00022465,2]
[358664889,1745351439921,-500.0,0.00022465,2]
[358664891,1745351439931,-186.25252973,0.00022465,2]
[358664893,1745351439941,-704.72,0.00022465,2]
[358664895,1745351439951,-500.0,0.00022465,2]
[358664897,1745351439960,-500.0,0.00022465,2]
[358664899,1745351439969,-500.0,0.00022465,2]
[358664901,1745351439979,-500.0,0.00022465,2]
[358664903,1745351439988,-500.0,0.00022465,2]
[358664906,1745351439997,-500.0,0.00022465,2]
[358664909,1745351440007,-500.0,0.00022465,2]
[358664911,1745351440017,-500.0,0.00022465,2]
[358664913,1745351440027,-500.0,0.00022465,2]
[358664915,1745351440037,-500.0,0.00022465,2]
[358664917,1745351440047,-500.0,0.00022673,2]
[358664920,1745351440056,-500.0,0.00022673,2]
[358664922,1745351440066,-151.0,0.0002269,2]
[358664924,1745351440075,-500.0,0.00022739,2]
[358664926,1745351440085,-1760.35,0.00022739,2]
[358664928,1745351440095,-500.0,0.00022739,2]
[358664930,1745351440104,-704.72,0.00022739,2]
[358664932,1745351440114,-500.0,0.00022739,2]
[358664934,1745351440123,-311.01486503,0.00022739,2]
[358664936,1745351440133,-500.0,0.00022739,2]
[358664938,1745351440143,-500.0,0.00022739,2]
[358664940,1745351440152,-500.0,0.00022739,2]
[358664942,1745351440162,-446.37446683,0.00022739,2]
[358664944,1745351440171,-500.0,0.00022739,2]
[358664946,1745351440180,-500.0,0.00022739,2]
[358664948,1745351440189,-500.0,0.00022739,2]
[358664950,1745351440201,-500.0,0.00022739,2]
[358664952,1745351440211,-160.0,0.00022846,2]
[358664954,1745351440220,-12570.97479393,0.00022846,2]
[358664956,1745351440229,-160.0,0.00022846,2]
[358664958,1745351440238,-729.16666667,0.00022846,2]
[358664960,1745351440248,-420.73667954,0.00022846,2]
[358664962,1745351440259,-1906.4528135,0.00022863,2]
[358664964,1745351440268,-500.0,0.00022947,2]
[358664966,1745351440280,-500.0,0.00023013,2]
[358664968,1745351440290,-1760.35,0.00023013,2]
[358664970,1745351440299,-500.0,0.00023013,2]
[358664972,1745351440308,-704.72,0.00023013,2]
[358664974,1745351440318,-500.0,0.00023013,2]
[358664976,1745351440328,-500.0,0.00023013,2]
[358664978,1745351440337,-500.0,0.00023013,2]